bitfinex-derivatives/quotes_BNBF0:USTF0_20250116
["timestamp","ask_amount","ask_price","bid_price","bid_amount"]
[1737050909514,1.04384029,716.3,715.33,0.935]
[1737050909715,1.04384029,716.3,715.34,0.46425553]
[1737050909920,1.04384029,716.56,715.33,0.935]
[1737050909921,1.04384029,716.36,715.35,0.46425553]
[1737050910120,0.27919313,716.35,715.36,0.46425553]
[1737050910321,0.27919313,716.35,715.37,0.46425553]
[1737050910523,0.27919313,716.35,715.38,0.46425553]
[1737050910721,0.27919313,716.35,715.39,0.46425553]
[1737050910925,0.27919313,716.35,715.4,0.46425553]
[1737050911128,0.27919313,716.35,715.41,0.46425553]
[1737050911425,0.27919313,716.35,715.42,0.46425553]
[1737050911626,0.27919313,716.35,715.43,0.46425553]
[1737050911822,1.32303342,716.35,715.44,0.46425553]
[1737050912024,1.32303342,716.35,715.45,0.46425553]
[1737050912220,1.32303342,716.35,715.46,0.46425553]
[1737050912426,1.32303342,716.35,715.47,0.46425553]
[1737050912625,1.32303342,716.35,715.48,0.46425553]
[1737050912926,1.32303342,716.35,715.49,0.46425553]
[1737050913127,1.32303342,716.35,715.5,0.46425553]
[1737050913329,1.04384029,716.31,715.51,0.46425553]
[1737050913528,1.04384029,716.31,715.33,0.935]
[1737050913732,1.04384029,716.31,715.34,0.46405089]
[1737050913921,1.04384029,716.31,715.35,0.46402095]
[1737050914125,1.04384029,716.31,715.36,0.46402095]
[1737050914331,1.04384029,716.26,715.37,0.46402095]
[1737050914528,1.04384029,716.26,715.38,0.46402095]
[1737050914723,1.04384029,716.26,715.39,0.46402095]
[1737050915028,1.04384029,716.26,715.4,0.46402095]
[1737050915223,1.04384029,716.26,715.41,0.46402095]
[1737050915428,0.27919313,716.35,715.42,0.46402095]
[1737050915621,0.27919313,716.35,715.43,0.46402095]
[1737050915825,0.27919313,716.35,715.44,0.46402095]
[1737050916126,0.27919313,716.35,715.45,0.46402095]
[1737050916325,0.27919313,716.35,715.46,0.46402095]
[1737050916523,0.27919313,716.35,715.47,0.46402095]
[1737050916722,0.27919313,716.35,715.43,0.999]
[1737050916920,0.27919313,716.35,715.44,0.4638712]
[1737050917125,0.27919313,716.35,715.45,0.4638712]
[1737050917325,0.27919313,716.35,715.46,0.4638712]
[1737050917524,0.27919313,716.35,715.47,0.4638712]
[1737050917725,0.27919313,716.35,715.43,0.999]
[1737050917726,1.04384029,716.22,715.43,0.999]
[1737050917923,1.04384029,716.22,715.44,0.46396044]
[1737050918122,1.04384029,716.22,715.45,0.46396044]
[1737050918328,1.04384029,716.22,715.46,0.46396044]
[1737050918523,1.04384029,716.21,715.47,0.46396044]
[1737050918731,1.04384029,716.21,715.43,0.999]
[1737050918928,1.04384029,716.21,715.44,0.46405464]
[1737050919227,1.04384029,716.21,715.45,0.46405464]
[1737050919527,1.04384029,716.21,715.43,0.999]
[1737050919730,1.04384029,716.14,715.43,0.999]
[1737050921127,1.04384029,716.06,715.43,0.999]
[1737050921926,1.04384029,716.03,715.43,0.999]
[1737050923124,1.04384029,715.99,715.43,0.999]
[1737050924230,1.04384029,715.98,715.43,0.999]
[1737050924629,1.04384029,715.98,715.43,2.295]
[1737050925229,0.70535151,716.34,715.43,2.295]
[1737050925230,1.04384029,715.97,715.43,2.295]
[1737050926431,1.04384029,715.98,715.43,2.295]
[1737050926633,1.04384029,715.98,715.44,0.46515642]
[1737050926831,1.04384029,715.98,715.45,0.46515642]
[1737050927037,1.04384029,715.98,715.46,0.46515642]
[1737050927231,1.04384029,715.98,715.47,0.46515642]
[1737050927429,1.04384029,715.98,715.48,0.46515642]
[1737050927633,1.04384029,715.99,715.43,2.295]
[1737050927936,1.04384029,715.99,715.44,0.46521589]
[1737050928131,1.04384029,715.99,715.43,2.295]
[1737050928132,1.04384029,715.99,715.45,0.46521589]
[1737050928329,1.04384029,715.99,715.46,0.46521589]
[1737050928529,1.04384029,715.99,715.47,0.46521589]
[1737050928734,1.04384029,716.0,715.43,3.384]
[1737050928935,1.04384029,716.0,715.44,0.46534238]
[1737050929136,1.04384029,716.0,715.45,0.46534238]
[1737050929337,1.04384029,716.0,715.46,0.46534238]
[1737050929535,1.04384029,716.0,715.43,3.384]
[1737050929536,1.04384029,716.0,715.47,0.46534238]
[1737050929732,1.04384029,716.0,715.48,0.46534238]
[1737050929930,1.04384029,715.99,715.43,3.384]
[1737050930134,1.04384029,715.99,715.44,0.46539071]
[1737050930429,1.04384029,715.99,715.45,0.46539071]
[1737050930634,1.04384029,715.99,715.46,0.46539071]
[1737050930830,1.04384029,715.94,715.47,0.46539071]
[1737050931032,1.04384029,715.94,715.48,0.46539071]
[1737050931233,1.04384029,715.94,715.49,0.46539071]
[1737050931428,1.04384029,715.94,715.5,0.46539071]
[1737050931633,1.04384029,715.94,715.51,0.46539071]
[1737050931829,1.04384029,715.94,715.52,0.46539071]
[1737050932039,1.04384029,716.02,715.53,0.46539071]
[1737050932331,1.04384029,716.02,715.43,3.384]
[1737050933844,1.04384029,716.02,715.44,0.46554893]
[1737050934037,1.04384029,716.02,715.45,0.46554893]
[1737050934338,1.04384029,716.01,715.46,0.46554893]
[1737050934533,1.04384029,716.01,715.47,0.46554893]
[1737050934734,1.04384029,716.01,715.48,0.46554893]
[1737050934936,1.04384029,716.01,715.49,0.46567288]
[1737050935138,1.04384029,716.01,715.5,0.46567288]
[1737050935337,1.04384029,716.01,715.51,0.46567288]
[1737050935532,1.04384029,716.0,715.52,0.46567288]
[1737050935738,1.04384029,716.0,715.53,0.46567288]
[1737050935933,1.04384029,716.0,715.43,3.384]
[1737050936236,1.04384029,716.0,715.44,0.46567814]
[1737050936436,1.04384029,716.0,715.45,0.46567814]
[1737050936634,1.04384029,715.98,715.46,0.46567814]
[1737050936942,1.04384029,715.98,715.47,0.46567814]
[1737050937139,1.04384029,715.98,715.48,0.46567814]
[1737050937340,1.04384029,715.98,715.49,0.46567814]
[1737050937640,1.04384029,715.98,715.5,0.46567814]
[1737050937840,1.04384029,715.98,715.51,0.46567814]
[1737050938139,1.04384029,715.99,715.52,0.46567814]
[1737050938441,1.04384029,715.99,715.53,0.46567814]
[1737050938739,1.04384029,715.99,715.54,0.46567814]
[1737050938941,1.04384029,715.99,715.55,0.46567814]
[1737050939141,1.04384029,716.0,715.56,0.46567814]
[1737050939443,1.04384029,716.0,715.43,3.384]
[1737050939742,1.04384029,716.0,715.44,0.4659755]
[1737050940040,1.04384029,716.01,715.45,0.4659755]
[1737050940235,1.04384029,716.01,715.46,0.4659755]
[1737050940540,1.04384029,716.01,715.47,0.4659755]
[1737050940740,1.04384029,716.01,715.48,0.4659755]
[1737050940940,1.04384029,716.01,715.49,0.4659755]
[1737050941141,1.04384029,716.01,715.5,0.4659755]
[1737050941341,1.04384029,716.01,715.51,0.4659755]
[1737050941543,1.04384029,716.01,715.52,0.4659755]
[1737050941841,1.04384029,716.01,715.53,0.4659755]
[1737050942042,1.04384029,716.01,715.54,0.4659755]
[1737050942243,1.04384029,716.01,715.43,3.384]
[1737050942244,1.04384029,716.02,715.55,0.4659755]
[1737050942444,1.04384029,716.02,715.56,0.4659755]
[1737050942742,1.04384029,716.02,715.57,0.4659755]
[1737050942938,1.04384029,716.02,715.58,0.4659755]
[1737050943142,1.04384029,716.02,715.43,3.384]
[1737050943143,1.04384029,716.03,715.43,3.384]
[1737050943342,1.04384029,716.03,715.44,0.46626355]
[1737050943536,1.04384029,716.03,715.45,0.46626355]
[1737050943743,1.04384029,716.03,715.46,0.46626355]
[1737050943938,1.04384029,716.03,715.47,0.46626355]
[1737050944139,1.04384029,716.03,715.48,0.46626355]
[1737050944345,1.04384029,716.02,715.49,0.46626355]
[1737050944640,1.04384029,716.02,715.5,0.46626355]
[1737050944845,1.04384029,716.02,715.43,2.295]
[1737050944846,1.04384029,716.02,715.51,0.46626355]
[1737050945046,1.04384029,716.02,715.52,0.46626355]
[1737050945346,1.04384029,716.05,715.53,0.46626355]
[1737050945545,1.04384029,716.05,715.54,0.46626355]
[1737050945844,1.04384029,716.05,715.55,0.46626355]
[1737050946145,1.04384029,716.05,715.56,0.46626355]
[1737050946445,1.04384029,716.05,715.57,0.46626355]
[1737050946646,1.04384029,716.05,715.58,0.46626355]
[1737050946940,1.04384029,716.05,715.59,0.46626355]
[1737050947139,1.04384029,716.05,715.6,0.46626355]
[1737050947346,1.04384029,716.05,715.61,0.46626355]
[1737050947546,1.04384029,716.05,715.62,0.46626355]
[1737050947845,1.04384029,716.05,715.63,0.46626355]
[1737050948046,1.04384029,716.06,715.64,0.46626355]
[1737050948245,1.04384029,716.06,715.65,0.46626355]
[1737050948444,1.04384029,716.06,715.66,0.46626355]
[1737050948642,1.04384029,716.06,715.55,0.893]
[1737050948840,1.04384029,716.06,715.56,0.46641145]
[1737050949040,1.04384029,716.06,715.57,0.46641145]
[1737050949349,1.04384029,716.04,715.58,0.46641145]
[1737050949548,1.04384029,716.04,715.59,0.46641145]
[1737050949746,1.04384029,716.04,715.6,0.46641145]
[1737050949943,1.04384029,716.04,715.61,0.46641145]
[1737050950147,1.04384029,716.04,715.62,0.46641145]
[1737050950443,1.04384029,716.02,715.63,0.46641145]
[1737050950747,1.04384029,716.02,715.64,0.46641145]
[1737050950947,1.04384029,716.02,715.65,0.46641145]
[1737050951150,1.04384029,716.11,715.55,0.893]
[1737050951349,1.04384029,716.11,715.56,0.46656569]
[1737050951649,1.04384029,716.11,715.57,0.46656569]
[1737050951950,1.04384029,716.11,715.58,0.46656569]
[1737050952145,1.04384029,716.11,715.59,0.46656569]
[1737050952343,0.27921651,716.29,715.6,0.46656569]
[1737050952344,1.04384029,716.1,715.6,0.46656569]
[1737050952547,1.04384029,716.1,715.61,0.46656569]
[1737050952745,1.04384029,716.1,715.62,0.46656569]
[1737050952944,1.04384029,716.1,715.63,0.46656569]
[1737050953146,1.04384029,716.1,715.55,0.893]
[1737050953147,1.04384029,716.1,715.64,0.46656569]
[1737050953349,0.27921651,716.29,715.55,0.893]
[1737050953350,1.04384029,716.13,715.55,0.893]
[1737050953648,1.04384029,716.13,715.56,0.46664385]
[1737050953845,1.04384029,716.13,715.57,0.46664385]
[1737050954149,1.04384029,716.13,715.58,0.46664385]
[1737050954352,1.04384029,716.09,715.59,0.46664385]
[1737050954546,1.04384029,716.09,715.6,0.46664385]
[1737050954743,1.04384029,716.09,715.61,0.46664385]
[1737050954947,1.04384029,716.09,715.62,0.46664385]
[1737050955148,1.04384029,716.09,715.63,0.46664385]
[1737050955348,1.04384029,716.09,715.55,0.893]
[1737050955647,1.04384029,716.09,715.56,0.46669004]
[1737050955847,1.04384029,716.09,715.57,0.46669004]
[1737050956149,1.04384029,716.09,715.58,0.46669004]
[1737050956348,1.04384029,716.09,715.59,0.46669004]
[1737050956648,1.04384029,716.09,715.6,0.46669004]
[1737050956849,1.04384029,716.09,715.61,0.46669004]
[1737050957042,1.04384029,716.09,715.58,0.977]
[1737050957246,1.04384029,716.09,715.59,0.46677715]
[1737050957450,0.27921651,716.29,715.6,0.46677715]
[1737050957451,1.04384029,716.07,715.6,0.46677715]
[1737050957644,1.04384029,716.07,715.61,0.46677715]
[1737050957848,1.04384029,716.07,715.62,0.46677715]
[1737050958052,1.04384029,716.07,715.59,0.811]
[1737050958550,1.04384029,716.0,715.59,0.811]
[1737050959653,1.04384029,715.97,715.59,0.811]
[1737050960746,1.04384029,715.86,715.59,0.811]
[1737050961946,1.04384029,715.88,715.59,0.811]
[1737050962951,1.04384029,715.89,715.59,0.811]
[1737050964354,1.04384029,715.9,715.59,0.811]
[1737050965456,1.04384029,715.84,715.59,0.811]
[1737050966457,1.04384029,715.92,715.59,1.59]
[1737050968660,1.04384029,715.97,715.59,1.59]
[1737050969051,1.04384029,715.97,715.59,2.47]
[1737050970655,1.04384029,715.99,715.59,2.47]
[1737050971459,1.04384029,716.01,715.59,2.47]
[1737050975458,1.04384029,715.98,715.59,2.47]
[1737050976262,0.70549761,716.28,715.59,2.47]
[1737050976263,1.04384029,715.93,715.59,2.47]
[1737050977262,1.04384029,716.25,715.59,2.47]
[1737050977263,1.04384029,715.94,715.59,2.47]
[1737050978067,1.04384029,715.92,715.59,2.47]
[1737050979067,1.04384029,715.93,715.59,2.47]
[1737050980467,1.04384029,715.91,715.59,2.47]
[1737050982666,1.04384029,716.23,715.59,2.47]
[1737050982667,1.04384029,715.93,715.59,2.47]
[1737050983668,1.04384029,716.23,715.59,2.47]
[1737050983669,1.04384029,715.92,715.59,2.47]
[1737050986263,1.04384029,715.9,715.59,2.47]
[1737050987468,0.70549761,716.28,715.59,2.47]
[1737050987469,1.04384029,715.84,715.59,2.47]
[1737050989761,1.04384029,715.83,715.59,2.47]
[1737050990970,1.04384029,715.82,715.59,2.47]
[1737050993567,1.04384029,715.88,715.59,2.47]
[1737050993763,1.04384029,715.88,715.59,3.348]
[1737050994465,1.04384029,715.92,715.59,3.348]
[1737050995569,1.04384029,715.91,715.59,3.348]
[1737050996672,1.04384029,715.98,715.59,3.348]
[1737050997871,1.04384029,715.87,715.59,3.348]
[1737050999077,1.04384029,715.84,715.59,3.348]
[1737051000376,1.04384029,715.74,715.59,3.348]
[1737051001271,1.04384029,715.73,715.59,3.348]
[1737051002177,1.04384029,715.67,715.59,3.348]
[1737051002377,1.04384029,715.67,715.59,0.878]
[1737051003178,1.04384029,715.6,715.59,0.57208066]
[1737051005080,1.04384029,715.69,715.59,0.57208066]
[1737051012583,1.04384029,715.68,715.59,0.57208066]
[1737051014783,1.04384029,715.66,715.59,0.57208066]
[1737051015785,1.04384029,715.7,715.59,0.57208066]
[1737051016785,1.04384029,715.7,715.47,1.872]
[1737051017787,1.04384029,715.64,715.47,1.872]
[1737051018682,1.04384029,715.65,715.47,1.872]
[1737051019787,1.04384029,715.61,715.47,1.872]
[1737051020590,1.04384029,715.52,715.47,1.872]
[1737051023089,1.04384029,715.51,715.47,1.872]
[1737051023594,1.04384029,715.51,715.47,1.016]
[1737051024295,1.04384029,715.52,715.47,1.016]
[1737051025290,1.04384029,715.65,715.47,1.016]
[1737051026597,2.13117394,716.45,715.47,1.016]
[1737051026598,1.04384029,715.68,715.47,1.016]
[1737051027897,2.13117394,716.48,715.47,1.016]
[1737051027898,1.04384029,715.75,715.47,1.016]
[1737051029700,1.04384029,715.77,715.47,1.016]
[1737051030995,2.13117394,716.57,715.47,1.016]
[1737051030996,1.04384029,715.75,715.47,1.016]
[1737051032200,2.13117394,716.55,715.47,1.016]
[1737051032201,1.04384029,715.86,715.47,1.016]
[1737051033100,1.04384029,715.88,715.47,1.016]
[1737051034199,1.04384029,715.92,715.47,1.016]
[1737051035398,1.04384029,715.83,715.47,1.016]
[1737051036802,1.04384029,715.74,715.47,2.222]
[1737051038102,1.04384029,715.76,715.47,2.222]
[1737051039300,1.04384029,715.79,715.47,2.222]
[1737051041305,1.04384029,715.8,715.47,2.222]
[1737051043609,1.04384029,715.85,715.47,2.222]
[1737051044612,1.04384029,715.87,715.47,2.917]
[1737051045814,1.04384029,715.88,715.47,2.917]
[1737051046213,1.04384029,715.88,715.47,3.993]
[1737051046511,1.04384029,715.89,715.47,3.993]
[1737051049016,1.04384029,715.88,715.47,3.993]
[1737051050216,1.04384029,715.87,715.47,3.993]
[1737051051218,1.04384029,715.79,715.47,3.993]
[1737051053418,1.04384029,715.78,715.47,3.993]
[1737051054617,1.04384029,715.76,715.47,3.993]
[1737051055822,1.04384029,715.72,715.47,3.993]
[1737051057723,1.04384029,715.7,715.47,3.993]
[1737051058519,1.04384029,715.73,715.47,3.993]
[1737051059415,1.04384029,715.71,715.47,3.993]
[1737051060723,1.04384029,715.62,715.47,3.993]
[1737051061824,1.04384029,715.86,715.47,3.993]
[1737051062023,0.27938813,715.85,715.47,3.993]
[1737051063925,1.04384029,715.72,715.47,3.993]
[1737051065724,1.04384029,715.71,715.47,3.993]
[1737051066926,1.04384029,715.64,715.47,3.993]
[1737051068228,1.04384029,715.65,715.47,3.993]
[1737051069331,1.04384029,715.64,715.47,3.993]
[1737051070227,1.04384029,715.58,715.47,3.993]
[1737051070530,0.70322659,715.84,715.47,3.993]
[1737051070531,0.70322659,715.84,715.47,0.695]
[1737051071433,1.04638957,715.53,715.47,0.695]
[1737051071633,1.04638957,715.53,715.47,2.525]
[1737051071934,1.04638957,715.53,715.47,1.83]
[1737051072332,1.04638957,715.54,715.47,1.83]
[1737051073434,1.04638957,715.56,715.47,1.83]
[1737051074836,1.04638957,715.64,715.47,1.83]
[1737051075937,1.04638957,715.65,715.47,1.83]
[1737051078139,1.04638957,715.66,715.47,1.83]
[1737051079039,1.04638957,715.71,715.47,1.83]
[1737051081340,1.04638957,715.73,715.47,1.83]
[1737051082240,1.04638957,715.73,715.47,2.653]
[1737051082438,1.04638957,715.72,715.47,2.653]
[1737051083234,1.04638957,715.71,715.47,2.653]
[1737051084542,1.04638957,715.69,715.47,2.653]
[1737051085543,1.04638957,715.68,715.47,2.653]
[1737051086744,1.04638957,715.69,715.47,2.653]
[1737051087545,1.04638957,715.71,715.47,2.653]
[1737051088345,0.27938813,715.85,715.47,2.653]
[1737051088346,1.04638957,715.59,715.47,2.653]
[1737051089040,1.04638957,715.59,715.47,1.39]
[1737051089245,1.04638957,715.59,714.33,1.04527849]
[1737051089444,1.04638957,715.59,714.34,0.46816255]
[1737051089645,0.27938813,715.85,714.35,0.46816255]
[1737051089646,1.04638957,715.55,714.35,0.46816255]
[1737051089845,1.04638957,715.55,714.36,0.46819194]
[1737051090046,1.04638957,715.55,714.37,0.46819194]
[1737051090248,1.04638957,715.55,714.38,0.46715365]
[1737051090447,1.04638957,715.55,714.39,0.46715365]
[1737051090742,1.04638957,715.55,714.4,0.46715365]
[1737051090949,1.04638957,715.54,714.41,0.46715365]
[1737051091147,1.04638957,715.54,714.42,0.46715365]
[1737051091343,1.04638957,715.54,714.43,0.46715365]
[1737051091542,1.04638957,715.54,714.44,0.46715365]
[1737051091848,1.04638957,715.54,714.45,0.46715365]
[1737051092047,1.04638957,715.54,714.46,0.46715365]
[1737051092245,1.04638957,715.57,714.47,0.46715365]
[1737051092444,1.04638957,715.57,714.48,0.46715365]
[1737051092445,0.27950136,715.56,714.48,0.46715365]
[1737051092646,0.27950136,715.56,714.49,0.46715365]
[1737051092848,0.27950136,715.56,714.5,0.46715365]
[1737051093046,0.27950136,715.56,714.51,0.46715365]
[1737051093246,0.27950136,715.56,714.38,0.82]
[1737051093247,0.27950136,715.56,714.52,0.46715365]
[1737051093448,0.27950136,715.56,714.53,0.46715365]
[1737051093648,0.27950136,715.56,714.38,0.82]
[1737051093649,0.27950136,715.56,714.54,0.46715365]
[1737051093849,0.27950136,715.56,714.55,0.46715365]
[1737051094046,0.27950136,715.56,714.56,0.46715365]
[1737051094350,0.27950136,715.56,714.57,0.46657055]
[1737051094545,0.27950136,715.56,714.58,0.46657055]
[1737051094744,0.27950136,715.56,714.59,0.46657055]
[1737051095049,0.27950136,715.56,714.38,0.82]
[1737051095050,0.27950136,715.56,714.6,0.46657055]
[1737051095251,0.27950136,715.56,714.61,0.46657055]
[1737051095550,0.27950136,715.56,714.62,0.46657055]
[1737051095753,1.32589093,715.56,714.63,0.46657055]
[1737051096049,1.32589093,715.56,714.64,0.46657055]
[1737051096249,1.32589093,715.56,714.65,0.46657055]
[1737051096550,1.32589093,715.56,714.66,0.46657055]
[1737051096750,1.32589093,715.56,714.67,0.46657055]
[1737051096950,1.32589093,715.56,714.68,0.46657055]
[1737051097151,0.27950136,715.56,714.69,0.46657055]
[1737051097451,0.27950136,715.56,714.7,0.46657055]
[1737051097653,0.27950136,715.56,714.71,0.46657055]
[1737051097952,0.27950136,715.56,714.38,0.82]
[1737051098152,0.27950136,715.56,714.39,0.46621568]
[1737051098352,0.27950136,715.56,714.4,0.46621568]
[1737051098652,0.27950136,715.56,714.41,0.46621568]
[1737051098846,0.27950136,715.56,714.42,0.46621568]
[1737051099049,0.27950136,715.56,714.43,0.46621568]
[1737051099251,0.27950136,715.56,714.44,0.46621568]
[1737051099552,0.27950136,715.56,714.38,0.82]
[1737051099553,1.32589093,715.56,714.45,0.46621568]
[1737051099852,1.32589093,715.56,714.38,0.82]
[1737051100053,1.32589093,715.56,714.39,0.46606683]
[1737051100250,1.32589093,715.56,714.4,0.46606683]
[1737051100450,1.32589093,715.56,714.41,0.46606683]
[1737051100656,1.32589093,715.56,714.42,0.46606683]
[1737051100948,1.32589093,715.56,714.43,0.46606683]
[1737051101153,1.32589093,715.56,714.44,0.46606683]
[1737051101354,1.32589093,715.56,714.45,0.46606683]
[1737051101554,1.32589093,715.56,714.38,0.82]
[1737051101755,0.27950136,715.56,714.39,0.46589815]
[1737051101952,0.27950136,715.56,714.4,0.46589815]
[1737051102153,0.27950136,715.56,714.38,0.82]
[1737051102354,0.27950136,715.56,714.39,0.46573699]
[1737051102555,0.27950136,715.56,714.38,0.82]
[1737051102756,0.27950136,715.56,714.39,0.46569576]
[1737051102956,0.27950136,715.56,714.4,0.46569576]
[1737051103251,0.27950136,715.56,714.38,0.82]
[1737051103658,0.27950136,715.56,714.39,0.46543767]
[1737051103857,0.27950136,715.56,714.38,0.82]
[1737051103858,1.04638957,715.55,714.38,0.82]
[1737051104154,0.27951308,715.53,714.39,0.46545739]
[1737051104457,0.27951308,715.53,714.38,0.82]
[1737051106459,0.27951308,715.53,714.39,0.4649149]
[1737051106660,0.27951308,715.53,714.39,0.768]
[1737051106853,0.27951308,715.53,714.4,0.46491042]
[1737051107054,0.27951308,715.53,714.39,0.768]
[1737051110253,1.46071189,715.52,714.39,0.768]
[1737051110456,0.2795248,715.5,714.39,0.768]
[1737051110860,0.2795248,715.5,714.39,1.64]
[1737051111663,0.2795248,715.5,714.39,3.404]
[1737051120162,1.04638957,715.49,714.39,3.404]
[1737051120869,0.27953652,715.47,714.39,3.404]
[1737051121070,1.04638957,715.45,714.39,3.404]
[1737051121264,0.27955215,715.43,714.39,3.404]
[1737051122370,1.04638957,715.42,714.39,3.404]
[1737051122571,0.27955997,715.41,714.39,3.404]
[1737051122764,0.27955997,715.41,714.4,0.46393005]
[1737051122969,0.27955997,715.41,714.41,0.46393005]
[1737051123168,0.27955997,715.41,714.42,0.46393005]
[1737051123470,0.27955997,715.41,714.39,3.404]
[1737051124467,1.04638957,715.34,714.39,3.404]
[1737051125571,1.04638957,715.29,714.39,3.404]
[1737051125766,0.27961078,715.28,714.39,3.404]
[1737051126674,1.04638957,715.26,714.39,3.404]
[1737051126872,0.2796225,715.25,714.39,3.404]
[1737051127872,0.2796225,715.25,714.4,0.46415599]
[1737051128176,0.2796225,715.25,714.41,0.46415599]
[1737051128373,0.2796225,715.25,714.42,0.46415599]
[1737051128573,0.2796225,715.25,714.43,0.46415599]
[1737051128773,0.2796225,715.25,714.39,3.404]
[1737051128975,0.2796225,715.25,714.4,0.46425446]
[1737051129174,0.2796225,715.25,714.41,0.46425446]
[1737051129378,0.2796225,715.25,714.39,3.404]
[1737051129575,0.2796225,715.25,714.4,0.46435415]
[1737051129776,0.2796225,715.25,714.41,0.46435415]
[1737051129976,0.2796225,715.25,714.39,3.404]
[1737051130981,1.04638957,715.24,714.39,3.404]
[1737051131182,1.04638957,715.24,714.4,0.46447563]
[1737051131380,1.04638957,715.24,714.39,2.353]
[1737051131583,1.04638957,715.24,714.4,0.46449351]
[1737051131780,1.04638957,715.24,714.39,2.353]
[1737051131781,1.04638957,715.24,714.41,0.46449139]
[1737051131976,1.04638957,715.22,714.39,2.353]
[1737051132178,1.04638957,715.22,714.4,0.46449181]
[1737051132379,1.04638957,715.22,714.41,0.46449181]
[1737051132579,1.04638957,715.22,714.41,0.72]
[1737051132777,1.04638957,715.22,714.42,0.46457382]
[1737051133075,1.04638957,715.22,714.43,0.46457382]
[1737051133278,1.04638957,715.22,714.44,0.46457382]
[1737051133476,1.04638957,715.22,714.45,0.46457382]
[1737051133680,1.04638957,715.22,714.46,0.46464939]
[1737051133879,1.04638957,715.22,714.47,0.46462577]
[1737051134177,0.2796225,715.25,714.48,0.46462577]
[1737051134382,0.2796225,715.25,714.46,1.028]
[1737051134585,0.2796225,715.25,714.47,0.46474432]
[1737051134778,0.2796225,715.25,714.48,0.46474432]
[1737051134981,0.2796225,715.25,714.46,1.028]
[1737051135283,1.04638957,715.23,714.46,1.028]
[1737051136279,1.04638957,715.18,714.46,1.028]
[1737051137287,0.2796225,715.25,714.46,1.028]
[1737051137288,1.04638957,715.17,714.46,1.028]
[1737051138987,1.04638957,715.17,714.46,1.782]
[1737051139482,1.04638957,715.14,714.46,1.782]
[1737051142588,1.04638957,715.14,714.47,0.46584846]
[1737051142783,1.04638957,715.14,714.46,1.782]
[1737051143186,1.04638957,715.18,714.47,0.46588567]
[1737051143390,1.04638957,715.18,714.46,1.782]
[1737051143687,1.04638957,715.18,714.47,0.46598805]
[1737051143888,1.04638957,715.18,714.46,1.782]
[1737051144088,1.04638957,715.2,714.47,0.46599015]
[1737051144389,1.04638957,715.2,714.48,0.4661851]
[1737051144687,1.04638957,715.2,714.49,0.4661851]
[1737051144882,1.04638957,715.2,714.46,1.782]
[1737051145087,1.04638957,715.19,714.47,0.46619112]
[1737051145382,1.04638957,715.19,714.46,1.782]
[1737051145383,1.04638957,715.19,714.48,0.46619112]
[1737051145583,1.04638957,715.19,714.49,0.46619112]
[1737051145787,1.04638957,715.19,714.46,1.782]
[1737051145987,1.04638957,715.19,714.47,0.46635492]
[1737051146189,1.04638957,715.19,714.48,0.46635492]
[1737051146387,1.04638957,715.16,714.49,0.46635492]
[1737051146587,1.04638957,715.16,714.5,0.46635492]
[1737051146887,1.04638957,715.16,714.5,0.713]
[1737051147389,1.04638957,715.21,714.5,0.713]
[1737051148587,1.04638957,715.13,714.5,0.713]
[1737051149692,1.04638957,715.11,714.5,0.713]
[1737051150889,1.04638957,715.09,714.5,0.713]
[1737051152088,1.04638957,715.07,714.5,0.713]
[1737051152293,0.2796968,715.06,714.5,0.713]
[1737051153098,1.04638957,714.91,714.5,0.713]
[1737051153693,1.04638957,714.91,714.5,1.762]
[1737051155193,1.04638957,715.02,714.5,1.762]
[1737051155496,0.27971636,715.01,714.5,1.762]
[1737051159199,0.27971636,715.01,714.5,2.752]
[1737051159700,1.32610593,715.01,714.5,2.752]
[1737051160501,0.27971636,715.01,714.5,2.752]
[1737051182205,1.04638957,714.99,714.5,2.752]
[1737051182605,1.04638957,714.99,714.5,3.886]
[1737051183409,1.04638957,714.84,714.5,3.886]
[1737051184615,1.04638957,714.82,714.5,3.886]
[1737051185710,1.04638957,714.91,714.5,3.886]
[1737051186012,0.27971636,715.01,714.5,3.886]
[1737051186915,1.04567043,714.92,714.5,3.886]
[1737051188013,1.04567043,714.88,714.5,3.886]
[1737051189016,1.04567043,715.0,714.5,3.886]
[1737051189811,0.27971636,715.01,714.5,3.886]
[1737051193824,1.04567043,714.98,714.5,3.886]
[1737051194820,1.04567043,714.96,714.5,3.886]
[1737051195821,1.04567043,714.92,714.5,3.886]